Cogmind - Beta 11 X5 @@@ ROGUE MODE // 2021.06.27 @ 11:59:46 Player: Terminus Result: Self-destructed Performance ------------- Evolutions (7) 3500 Regions Visited (32) 6400 Robots Destroyed (527) 2635 Value Destroyed (21017) 21017 Prototype IDs (53) 1060 Alien Tech Used (5) 1000 Bonus (10448) 10448 TOTAL SCORE: 46060 Bonus ------- High Alert Combat Kills 1008 Follower Combat Kills 2449 Network Hubs Disabled 400 Met Data Miner 300 Met Imprinter 300 Triggered Deep Caves Wall 500 Exposed GOLEM Chamber 500 Met Warlord at Base 500 MAIN.C Attacked Warlord 500 Warlord Defense Kill 1542 Built Enhanced Grunts 300 A7 Reached Mainframe 300 Used Core Reset Matrix 3000 Met R17 at Research 2000 Friendly Fire -3151 Cogmind --------- Core Integrity 619/1300 Matter 242/300 Energy 1100/1100 System Corruption 5% Temperature Cool (0) Movement Walking (195) Ox1 Location -3/Section 7 Parts ------- > --- POWER (2) -------- Assembled Flux Generator > --- PROPULSION (4) --- Myomer Leg Advanced Myomer Leg Assembled Alloy Leg Assembled Alloy Leg > --- UTILITY (12) ----- Advanced Power Amplifier Huge Storage Unit Assembled Biocell Array Advanced Sensor Array Advanced Signal Interpreter Improved Particle Charger Assembled Alloy Armor Improved Hacking Suite Advanced Hacking Suite Ghost Barrier GOLEM Unit > --- WEAPON (3) ------- Assembled Focal Cannon Assembled Focal Cannon Assembled Focal Cannon > --- INVENTORY (25) --- Vortex Chain Reactor Vortex Chain Reactor Advanced Power Amplifier Advanced Energy Well (500) Advanced Energy Well (500) Advanced Energy Well (500) Advanced Armor Integrity Analyzer Medium Regenerative Plating EM Dispersion Field Experimental Force Field Dimensional Node Initializer Transdimensional Reconstructor Subatomic Replicator Microwarp Drive Mini Smartbomb Launcher Improved Plasma Cutter Core Stripper Peak State ------------ > --- POWER ------------ Assembled Flux Generator > --- PROPULSION ------- Myomer Leg Advanced Myomer Leg Assembled Alloy Leg Assembled Alloy Leg > --- UTILITY ---------- Huge Storage Unit Assembled Biocell Array Advanced Sensor Array Advanced Signal Interpreter Assembled Alloy Armor Improved Hacking Suite Advanced Hacking Suite Ghost Barrier GOLEM Unit Microwarp Drive > --- WEAPON ----------- Assembled Focal Cannon Assembled Focal Cannon Assembled Focal Cannon > --- INVENTORY -------- Vortex Chain Reactor Vortex Chain Reactor Advanced Power Amplifier Advanced Power Amplifier Advanced Power Amplifier Advanced Energy Well Advanced Energy Well Advanced Armor Integrity Analyzer Improved Particle Charger Medium Regenerative Plating EM Dispersion Field Experimental Force Field Dimensional Node Initializer Transdimensional Reconstructor Transdimensional Reconstructor Transdimensional Reconstructor Subatomic Replicator Mini Smartbomb Launcher Improved Plasma Cutter Core Stripper [Rating: 192] Favorites ----------- Power Assembled Flux Generator Engine Cooled Ion Engine Power Core Light Fission Core Reactor Assembled Flux Generator Propulsion Assembled Alloy Leg Leg Assembled Alloy Leg Utility GOLEM Unit Device GOLEM Unit Storage High-capacity Storage Unit Processor Improved Signal Interpreter Hackware Hacking Suite Protection Hardened Medium Armor Plating Artifact Microwarp Drive Weapon Assembled Focal Cannon Energy Gun Precision Beam Rifle Energy Cannon Assembled Focal Cannon Ballistic Gun Improved Assault Rifle Ballistic Cannon Light Cannon Launcher Heavy Rocket Launcher Special Weapon Improved Plasma Cutter Impact Weapon Core Stripper Piercing Weapon Spear Build | -11 -10 -10 -9 -9 -8 -8 -7 -7 -7 -7 -6 -6 -6 -6 -6 -6 -5 -5 -5 -5 -5 -4 -4 -4 -4 -4 -4 -4 -4 -3 -3 -3 ------- Run | Scr Mat Min Mat Min Mat Sto Fac Low Low Dat Pro Fac Low Low Zio Dee Pro Fac Upp Upp War Pro Fac Was Fac Ext Cet Arc Hub Res Qua Sec Slots Evolved 14 | . . . 2 . 2 . 2 . . . . 2 . . . . . 2 . . . . 2 . . . . . . 2 . . Power 1 | . . . . . . . . . . . . 1 . . . . . . . . . . . . . . . . . . . . Propulsion 2 | . . . . . 1 . . . . . . . . . . . . . . . . . . . . . . . . 1 . . Utility 10 | . . . 1 . 1 . 2 . . . . 1 . . . . . 2 . . . . 2 . . . . . . 1 . . Weapon 1 | . . . 1 . . . . . . . . . . . . . . . . . . . . . . . . . . . . . Parts Attached 437 | 6 23 . 31 . 27 21 40 3 12 10 11 49 1 11 3 30 . 12 2 4 9 11 5 2 20 6 5 5 19 12 37 10 Power 25 | 1 2 . 2 . 3 1 2 . . . 1 6 . 1 . 5 . . . . . . . . . . . . 1 . . . Engine 20 | 1 2 . 2 . 3 1 2 . . . . 5 . 1 . 3 . . . . . . . . . . . . . . . . Core 1 | . . . . . . . . . . . . 1 . . . . . . . . . . . . . . . . . . . . Reactor 4 | . . . . . . . . . . . 1 . . . . 2 . . . . . . . . . . . . 1 . . . Propulsion 64 | 2 8 . 9 . 7 5 3 1 . 1 3 9 . . . 4 . 1 . . 1 . . . 1 . . . 4 3 1 1 Treads . | . . . . . . . . . . . . . . . . . . . . . . . . . . . . . . . . . Leg 64 | 2 8 . 9 . 7 5 3 1 . 1 3 9 . . . 4 . 1 . . 1 . . . 1 . . . 4 3 1 1 Wheel . | . . . . . . . . . . . . . . . . . . . . . . . . . . . . . . . . . Hover . | . . . . . . . . . . . . . . . . . . . . . . . . . . . . . . . . . Flight . | . . . . . . . . . . . . . . . . . . . . . . . . . . . . . . . . . Utility 235 | 1 5 . 2 . 7 5 32 . 4 3 2 22 . 5 1 10 . 10 2 2 8 9 5 2 19 6 4 4 13 8 35 9 Device 164 | . 3 . . . 4 5 19 . 2 1 2 12 . 3 . 4 . 6 2 2 8 7 2 2 17 6 2 2 11 6 29 7 Storage 9 | 1 2 . . . 1 . . . . 1 . . . . . 1 . 2 . . . . . . . . . . 1 . . . Processor 5 | . . . . . . . 1 . . . . 1 . . . . . 1 . . . . 1 . . . . . . 1 . . Hackware 13 | . . . . . . . 2 . . . . . . . . 1 . 1 . . . . 2 . 2 . . 2 . 1 2 . Protection 43 | . . . 2 . 2 . 10 . 2 1 . 9 . 2 1 4 . . . . . 2 . . . . 2 . 1 . 4 1 Artifact 1 | . . . . . . . . . . . . . . . . . . . . . . . . . . . . . . . . 1 Weapon 113 | 2 8 . 18 . 10 10 3 2 8 6 5 12 1 5 2 11 . 1 . 2 . 2 . . . . 1 1 1 1 1 . Energy Gun 42 | . 2 . 4 . 9 6 2 . 7 5 2 4 . 1 . . . . . . . . . . . . . . . . . . Energy Cannon 28 | . 3 . 2 . . 1 . . . . . 7 . 2 2 8 . 1 . 1 . . . . . . . . 1 . . . Ballistic Gun 13 | 2 1 . 9 . 1 . . . . . . . . . . . . . . . . . . . . . . . . . . . Ballistic Cannon 2 | . 2 . . . . . . . . . . . . . . . . . . . . . . . . . . . . . . . Launcher 18 | . . . 3 . . 2 . 1 . . 2 1 1 2 . 2 . . . 1 . 2 . . . . . . . 1 . . Special Weapon 3 | . . . . . . . . . . . . . . . . 1 . . . . . . . . . . 1 1 . . . . Impact Weapon 1 | . . . . . . . . . . . . . . . . . . . . . . . . . . . . . . . 1 . Slashing Weapon . | . . . . . . . . . . . . . . . . . . . . . . . . . . . . . . . . . Piercing Weapon 6 | . . . . . . 1 1 1 1 1 1 . . . . . . . . . . . . . . . . . . . . . Special Melee Weapon . | . . . . . . . . . . . . . . . . . . . . . . . . . . . . . . . . . Unidentified Prototypes 36 | . 1 . 4 . 5 . 1 . . 2 . 2 . . . 4 . 1 . . 2 . 1 . . . 2 . 2 2 7 . Corrupted Parts 6 | . . . . . . . . . . 2 4 . . . . . . . . . . . . . . . . . . . . . System Corruption 35 | . . . . . . . . . . 19 16 . . . . . . . . . . . . . . . . . . . . . Parts Lost 51 | . 1 . . . 2 4 2 . . . 1 6 . 1 . 4 1 . . . 2 . . . 4 1 . . 10 3 8 1 Power 6 | . . . . . . . . . . . . 3 . . . 2 . . . . . . . . . . . . 1 . . . Propulsion 10 | . . . . . . 2 . . . . . 1 . . . 1 . . . . 1 . . . 1 . . . 3 . 1 . Utility 29 | . . . . . 2 2 2 . . . 1 1 . 1 . 1 1 . . . 1 . . . 3 1 . . 3 3 6 1 Weapon 6 | . 1 . . . . . . . . . . 1 . . . . . . . . . . . . . . . . 3 . 1 . Highest Loss Streak 9 | . 1 . . . 1 1 1 . . . 1 3 . 1 . 2 1 . . . 1 . . . 2 1 . . 9 2 2 1 Average Slot Usage (%) 92 | . 97 100 99 100 99 99 99 100 100 100 100 99 93 92 94 94 86 81 82 81 81 82 84 75 83 83 84 83 82 84 87 89 Engine 5 | . 13 14 10 11 8 8 6 7 7 7 7 7 6 7 13 7 . . . . . . . . . . . . . . . . Reactor 2 | . . . . . . . . . . . . 3 . . . 2 6 5 5 5 5 5 5 5 5 5 5 5 4 4 4 4 Leg 20 | . 27 28 22 22 26 26 23 23 23 23 23 19 20 20 20 19 20 17 17 17 16 17 15 15 15 15 15 15 14 18 19 19 Device 16 | . 11 14 11 11 17 26 21 23 22 19 23 18 20 19 18 10 14 17 17 17 16 16 15 15 15 15 15 14 14 14 15 14 Storage 9 | . 14 14 11 11 9 9 7 7 7 7 7 6 6 6 6 8 13 11 11 11 11 11 10 10 10 10 10 10 10 8 9 9 Processor 4 | . . . . . . . 7 7 7 7 7 11 13 13 13 12 4 2 5 5 5 5 5 5 5 5 5 5 5 3 4 4 Hackware 6 | . . . . . . . 7 7 7 7 7 6 6 6 6 2 . 4 5 5 5 5 15 15 14 15 15 15 15 18 16 14 Protection 3 | . . . 10 11 8 . 1 . . 3 . 1 . . 1 7 6 2 . . . . . . . . . . . . 3 8 Energy Gun 9 | . . 28 16 22 25 26 22 18 21 18 21 14 6 6 4 . . . . . . . . . . . . . . . . . Energy Cannon 8 | . 2 . 5 . . . . . . . . 4 6 5 9 18 20 16 17 16 17 16 15 7 14 14 14 11 14 13 13 14 Ballistic Gun 1 | . 8 . 10 11 1 . . . . . . . . . . . . . . . . . . . . . . . . . . . Naked Turns . | . . . . . . . . . . . . . . . . . . . . . . . . . . . . . . . . . Heaviest Build 184 | 13 34 28 48 46 67 65 63 64 64 66 67 85 76 78 93 125 126 128 122 124 131 132 131 131 132 131 131 131 171 172 184 184 Greatest Support 120 | 20 20 20 26 26 45 47 50 50 50 63 63 86 76 76 76 90 90 90 88 88 90 90 90 90 90 88 88 88 88 120 120 115 Greatest Overweight (x) 3 | 3 3 1 2 1 2 1 1 1 1 1 1 2 . 1 1 1 1 2 1 1 2 2 1 1 1 2 1 1 2 1 2 1 Average Overweight (x) . | . . 1 1 1 1 1 1 1 1 1 . . . . 1 . 1 1 1 1 1 1 1 . 1 1 1 1 1 1 1 1 Largest Inventory Capacity 25 | 8 15 15 15 15 20 20 20 20 20 20 20 20 20 20 20 20 20 20 20 20 20 20 20 20 20 20 20 20 25 25 25 25 Average Capacity 19 | 7 13 15 15 15 19 20 20 20 20 20 20 20 20 20 20 20 20 20 20 20 20 20 20 20 20 20 20 20 24 25 25 25 Most Carried 25 | 2 15 15 15 15 20 20 20 20 20 20 20 20 19 20 20 20 20 20 20 20 20 20 19 18 20 20 20 20 23 24 25 25 Average Carried 19 | 1 11 14 14 15 18 19 19 19 19 18 19 19 18 19 19 19 20 19 20 20 19 19 18 18 19 19 19 19 20 22 24 23 Final Capacity 25 | 8 15 15 15 15 20 20 20 20 20 20 20 20 20 20 20 20 20 20 20 20 20 20 20 20 20 20 20 20 25 25 25 25 Final Carried 25 | 2 15 15 15 15 20 20 20 20 20 20 19 19 19 20 20 20 20 20 20 20 20 20 18 18 19 18 20 20 23 24 25 21 Class Distribution -------------------- 19% | Hacker-Golem 17% | Golem 14% | Scavenger-Skirmisher 12% | Tank 12% | Scavenger-Mutant 6% | Scavenger-Tank 4% | Mutant 3% | Scavenger-Gunner Dominant Class ---------------- Mutant | -10/Materials Scavenger-Mutant | -10/Mines Tank | -9/Materials Tank | -9/Mines Tank | -8/Materials Scavenger-Gunner | -8/Storage Scavenger-Skirmisher | -7/Factory Scavenger-Mutant | -7/Lower Caves Scavenger-Skirmisher | -7/Lower Caves Scavenger-Mutant | -7/Data Miner Scavenger-Skirmisher | -6/Proximity Caves Scavenger-Skirmisher | -6/Factory Scavenger-Mutant | -6/Lower Caves Scavenger-Mutant | -6/Lower Caves Scavenger-Mutant | -6/Zion Golem | -6/Deep Caves Golem | -5/Proximity Caves Golem | -5/Factory Golem | -5/Upper Caves Golem | -5/Upper Caves Golem | -5/Warlord Golem | -4/Proximity Caves Hacker-Golem | -4/Factory Hacker-Mutant | -4/Waste Hacker-Golem | -4/Factory Hacker-Golem | -4/Extension Hacker-Golem | -4/Cetus Hacker-Golem | -4/Archives Hacker-Golem | -4/Hub_04(d) Hacker-Golem | -3/Research Hacker-Golem | -3/Quarantine Hacker-Golem | -3/Section 7 Resources | -11 -10 -10 -9 -9 -8 -8 -7 -7 -7 -7 -6 -6 -6 -6 -6 -6 -5 -5 -5 -5 -5 -4 -4 -4 -4 -4 -4 -4 -4 -3 -3 -3 ----------- Run | Scr Mat Min Mat Min Mat Sto Fac Low Low Dat Pro Fac Low Low Zio Dee Pro Fac Upp Upp War Pro Fac Was Fac Ext Cet Arc Hub Res Qua Sec Matter Collected 6516 | 245 497 150 539 24 307 217 396 69 97 155 190 640 105 112 55 603 . 211 62 96 113 207 38 . 293 105 62 97 157 96 503 75 Remotely . | . . . . . . . . . . . . . . . . . . . . . . . . . . . . . . . . . Salvage Created 28280 | 67 825 . 1686 151 2478 2009 1196 68 152 81 127 1995 182 55 527 3075 285 2321 139 390 680 327 217 . 1505 947 379 231 2004 1319 2387 475 Parts 1238 | 1 66 . 118 22 102 99 52 4 5 2 11 50 3 5 40 46 13 96 6 19 33 7 8 . 60 38 27 19 77 57 119 33 Haulers Intercepted 38 | . 2 . 6 . 6 6 2 . . . . 3 . . . . . 4 . . . 1 1 . . . . . 4 3 . . Recyclers Shooed 12 | . . . 2 . 2 2 . . . . . 2 . . . . . 3 . . . . . . 1 . . . . . . . Parts Field Recycled . | . . . . . . . . . . . . . . . . . . . . . . . . . . . . . . . . . Retrieved Matter . | . . . . . . . . . . . . . . . . . . . . . . . . . . . . . . . . . Parts Self-Destructed 206 | . . . . . . . . 4 11 . 9 . 3 5 . . 13 . 6 17 132 6 . . . . . . . . . . Prevented 21 | . . . . . . . . . 1 . . . . . . . . . 2 . 18 . . . . . . . . . . . Kills | -11 -10 -10 -9 -9 -8 -8 -7 -7 -7 -7 -6 -6 -6 -6 -6 -6 -5 -5 -5 -5 -5 -4 -4 -4 -4 -4 -4 -4 -4 -3 -3 -3 ------- Run | Scr Mat Min Mat Min Mat Sto Fac Low Low Dat Pro Fac Low Low Zio Dee Pro Fac Upp Upp War Pro Fac Was Fac Ext Cet Arc Hub Res Qua Sec Combat Hostiles Destroyed 402 | . 18 . 31 6 30 32 17 . 3 1 9 25 4 4 2 67 5 26 2 11 12 10 1 . 15 9 3 . 16 8 29 6 Guns 113 | . 7 . 12 6 29 25 16 . 3 . 1 14 . . . . . . . . . . . . . . . . . . . . Cannons 187 | . 11 . 10 . . . . . . . . 6 . . 2 20 4 24 2 8 12 3 1 . 14 9 3 . 16 8 28 6 AOE 82 | . . . 9 . . 4 . . . . 8 3 4 4 . 40 . . . 3 . 7 . . . . . . . . . . Classes Destroyed 29 | 1 6 . 4 . 1 1 1 1 1 . . 2 . . 2 4 . . . . 3 . . . . . 1 . . . 1 . Worker 14 | . . . 1 1 1 1 1 . . . . 1 . . . . . . . . . . . . 1 . . . 5 2 . . Builder 12 | . . . 1 . 2 2 1 . . . . . . . . . . 1 . . . . . . 2 1 . . 2 . . . Tunneler 4 | . 1 . . 1 . . . . . . . . . . . . . 1 . . . . . . . . . . 1 . . . Hauler 38 | . 2 . 6 . 6 6 2 . . . . 3 . . . . . 4 . . . 1 1 . . . . . 4 3 . . Recycler 31 | 1 3 . 3 . 7 2 1 . . . . 3 . . . . . 1 . . . . . . 4 1 . . 2 3 . . Carrier 1 | . . . . . . . . . . . . . . . . . . . . . . . . . . . 1 . . . . . Minesweeper 3 | . . . . . . . . 2 1 . . . . . . . . . . . . . . . . . . . . . . . Mechanic 1 | . . . . . . 1 . . . . . . . . . . . . . . . . . . . . . . . . . . Operator 23 | . 3 . 1 . 3 2 . . . . . 2 . . . . . 3 . . . . . . 1 1 . 6 . 1 . . Watcher 35 | . 2 . 5 . 4 2 4 . . . . 3 . . . . . 3 . . . . 1 . 2 1 1 . 2 1 3 1 Swarmer 68 | . 6 . 12 6 5 8 . . . . 8 3 . 4 . . . . . 5 1 4 . . 4 . 1 . . . 1 . Grunt 127 | . 12 . 9 . 13 11 4 . 1 . . 12 4 . . . 3 14 1 5 4 5 . . 3 4 1 . 8 4 9 . Brawler 4 | . . . 1 . . 1 . . . . . . . . . . . . . . 1 . . . . . . . . . 1 . Duelist 1 | . . . . . . . . . . . . 1 . . . . . . . . . . . . . . . . . . . . Protector 3 | . . . . . . . . . . . . 1 . . . . . . . . 2 . . . . . . . . . . . Sentry 57 | . . . 9 . 11 11 5 . . . 1 4 . . . . . 2 . 1 . 1 1 . 2 4 . . 2 2 . 1 Demolisher 1 | . . . . . . . . . . . . . . . . . . . . . 1 . . . . . . . . . . . Hunter 13 | . . . . . 1 1 2 . 1 . . 1 . . . . . 1 . . . . . . . . . . 2 1 3 . Programmer 50 | . . . . . . . 6 . . . . 3 . . . . 2 9 . . 1 . . . 6 . . . 4 . 14 5 Behemoth 4 | . . . . . . . . . 1 . . . . . . . . . 1 . . . . . . 1 . . . 1 . . Cetus Guard 1 | . . . . . . . . . . . . . . . . . . . . . . . . . . . 1 . . . . . Enhanced Grunt 1 | . . . . . . . . . . 1 . . . . . . . . . . . . . . . . . . . . . . Striker 1 | . . . . . . . . . . . . . . . . . . . . . 1 . . . . . . . . . . . Executioner 1 | . . . . . . . . . . . . . . . . . . . . . 1 . . . . . . . . . . . Fortress 1 | . . . . . . . . . . . . . . . . . . . . . . . . . . . . . . . 1 . Zionite 21 | . . . . . . . . . . . . . . . 21 . . . . . . . . . . . . . . . . . Z-Technician 5 | . . . . . . . . . . . . . . . . 5 . . . . . . . . . . . . . . . . Z-Light 6 | . . . . . . . . . . . . . . . . 6 . . . . . . . . . . . . . . . . Assembler 2 | . . . . . . . . . . . . . . . . 2 . . . . . . . . . . . . . . . . Assembled 40 | . . . . . . . . . . . . . . . . 40 . . . . . . . . . . . . . . . . Golem 21 | . . . . . . . . . . . . . . . . 21 . . . . . . . . . . . . . . . . Mutant 1 | . . . . . . . . . . . . . . . 1 . . . . . . . . . . . . . . . . . Best Kill Streak 39 | 1 4 . 4 3 6 5 3 1 1 1 4 6 4 3 7 39 3 6 1 5 3 5 2 . 4 2 2 3 5 4 3 4 Combat Bots Only 37 | . 4 . 4 3 5 4 2 . 1 1 4 6 4 3 1 37 3 3 1 5 3 5 1 . 4 2 1 . 4 2 3 4 Max Kills in Single Turn 11 | 1 1 . 3 2 2 3 2 1 1 1 2 3 2 3 1 11 1 2 1 2 1 3 1 . 2 1 2 1 4 1 1 1 Gunslinging 1 | . . . . 1 1 . 1 . . . . . . . . . . . . . . . . . . . . . . . . . Exploded 11 | . . . 3 . . 3 . . . . 2 2 2 3 . 11 . . . 2 . 3 . . . . . . . . . . Melee . | . . . . . . . . . . . . . . . . . . . . . . . . . . . . . . . . . Uniques/NPCs Destroyed 2 | . . . . . . . . . . . . . . . 1 . . . . . . . . . . . 1 . . . . . Imprinter (-6/Zion) A7 (-4/Cetus) Combat | -11 -10 -10 -9 -9 -8 -8 -7 -7 -7 -7 -6 -6 -6 -6 -6 -6 -5 -5 -5 -5 -5 -4 -4 -4 -4 -4 -4 -4 -4 -3 -3 -3 -------- Run | Scr Mat Min Mat Min Mat Sto Fac Low Low Dat Pro Fac Low Low Zio Dee Pro Fac Upp Upp War Pro Fac Was Fac Ext Cet Arc Hub Res Qua Sec Damage Taken 20673 | . 493 . 744 105 1092 1150 689 . 116 . 260 1332 . 194 148 835 487 1448 147 230 995 550 95 . 1319 250 69 . 3223 1011 3168 523 Core 2603 | . 66 . 115 . 92 213 104 . 15 . . 120 . 12 . 114 21 258 21 41 110 19 . . 172 23 . . 500 124 383 80 Absorbed by Shields 153 | . . . . . . . . . . . . . . . . . . . . . . . . . . 127 26 . . . . . Core Remaining (%) 66 | 100 . 73 . 71 . 44 . . . . 83 . . . . . 68 . . . . 55 . . . . . . 39 . . . Volleys Fired 1305 | 2 65 . 73 8 104 92 46 2 7 3 10 89 3 2 36 160 24 87 10 16 47 20 11 3 48 25 36 17 78 38 95 48 Largest 3 | 2 2 . 3 3 3 3 3 3 3 2 3 3 1 1 3 3 3 3 3 3 3 3 3 3 3 3 3 3 3 3 3 3 Hottest 240 | 40 136 . 159 135 183 183 202 202 240 110 202 219 80 80 105 213 85 85 85 85 85 80 75 75 75 75 75 75 130 80 75 75 Shots Fired 3322 | 4 130 . 211 24 312 270 137 6 21 6 18 229 3 2 108 296 72 239 31 41 114 42 29 5 130 74 54 37 192 108 259 118 Gun 1184 | 4 60 . 167 24 312 267 137 6 21 6 10 170 . . . . . . . . . . . . . . . . . . . . Cannon 2003 | . 70 . 40 . . 1 . . . . . 56 . . 108 233 72 239 31 39 114 35 29 5 130 74 27 25 192 106 259 118 Launcher 49 | . . . 4 . . 2 . . . . 8 3 3 2 . 16 . . . 2 . 7 . . . . . . . 2 . . Special 86 | . . . . . . . . . . . . . . . . 47 . . . . . . . . . . 27 12 . . . . Kinetic 219 | 4 124 . 69 8 14 . . . . . . . . . . . . . . . . . . . . . . . . . . . Thermal 3024 | . 6 . 138 16 298 268 137 6 21 . 10 226 . . 108 256 72 239 31 39 114 35 29 5 130 74 54 37 192 106 259 118 Explosive 49 | . . . 4 . . 2 . . . . 8 3 3 2 . 16 . . . 2 . 7 . . . . . . . 2 . . Electromagnetic 30 | . . . . . . . . . . 6 . . . . . 24 . . . . . . . . . . . . . . . . Robot Hit Streak 96 | 3 10 . 15 5 34 38 42 22 14 3 5 24 . 1 11 96 20 21 5 12 19 11 14 2 24 19 22 9 16 22 13 12 Robot Miss Streak 5 | 1 3 . 5 3 5 2 4 1 1 1 1 4 . . 2 3 1 4 1 1 3 1 3 1 4 2 3 3 3 2 3 3 Penetration Max . | . . . . . . . . . . . . . . . . . . . . . . . . . . . . . . . . . Secondary Targets 12 | . . . . 1 6 3 1 . . . . 1 . . . . . . . . . . . . . . . . . . . . Max Gunslinging Chain 2 | . . . . 1 2 1 1 . . . . 1 . . . . . . . . . . . . . . . . . . . . Shots Hit Robots 2037 | 3 73 . 119 11 214 208 100 6 19 5 4 174 . 1 63 213 26 141 13 30 58 12 20 2 76 54 41 24 95 68 133 31 Core Hits 1090 | 2 38 1 65 9 84 73 52 4 12 2 12 107 10 9 25 220 7 55 3 15 26 22 6 . 33 24 18 12 58 29 47 10 Critical Kills 9 | . . . . . . . . . . . . . . . . 6 1 2 . . . . . . . . . . . . . . Critical Parts Destroyed . | . . . . . . . . . . . . . . . . . . . . . . . . . . . . . . . . . Critical Strikes 69 | . . . 2 1 13 20 8 2 1 . 1 9 . . . 8 1 2 . . . . . . . . 1 . . . . . Burn 56 | . . . 2 1 13 20 8 1 1 . 1 9 . . . . . . . . . . . . . . . . . . . . Meltdown 9 | . . . . . . . . . . . . . . . . 6 1 2 . . . . . . . . . . . . . . Sever 3 | . . . . . . . . . . . . . . . . 2 . . . . . . . . . . 1 . . . . . Puncture 1 | . . . . . . . . 1 . . . . . . . . . . . . . . . . . . . . . . . . Melee Attacks 22 | . . . . . . 5 2 1 1 5 7 . . . . . . . . . . . . . . . . . . . 1 . Kinetic 1 | . . . . . . . . . . . . . . . . . . . . . . . . . . . . . . . 1 . Impact . | . . . . . . . . . . . . . . . . . . . . . . . . . . . . . . . . . Slashing . | . . . . . . . . . . . . . . . . . . . . . . . . . . . . . . . . . Piercing 21 | . . . . . . 5 2 1 1 5 7 . . . . . . . . . . . . . . . . . . . . . Sneak Attacks 6 | . . . . . . 3 1 1 . 1 . . . . . . . . . . . . . . . . . . . . . . Combat Hostiles . | . . . . . . . . . . . . . . . . . . . . . . . . . . . . . . . . . Follow-up Attacks . | . . . . . . . . . . . . . . . . . . . . . . . . . . . . . . . . . Damage Inflicted 74943 | 30 1124 48 2640 240 3961 4083 2106 163 482 119 937 4440 512 382 1914 9996 1048 6320 616 1730 2876 2149 881 74 3797 2539 1423 1086 5623 3248 6839 1517 Guns 15121 | 30 408 . 1399 194 3949 3516 1973 96 482 51 68 2955 . . . . . . . . . . . . . . . . . . . . Cannons 48007 | . 710 . 553 . . . . . . . . 738 . . 1914 6015 1048 6246 616 1263 2876 483 881 74 3760 2486 1122 1024 4793 3049 6839 1517 Explosions 9808 | . . . 586 . . 252 . . . . 869 679 512 306 . 3554 . . . 467 . 1666 . . . . . . 803 114 . . Melee 452 | . . . . . . 233 84 67 . 68 . . . . . . . . . . . . . . . . . . . . . . Ramming 779 | . 6 48 102 46 12 82 49 . . . . 68 . 76 . 14 . 74 . . . . . . 37 53 . . 27 85 . . Kinetic 1727 | 30 1057 . 438 77 125 . . . . . . . . . . . . . . . . . . . . . . . . . . . Thermal 61686 | . 61 . 1514 117 3824 3516 1973 96 482 . 68 3758 . . 1914 5923 1048 6246 616 1263 2876 483 881 74 3760 2486 1423 1086 4793 3049 6839 1517 Explosive 8884 | . . . 586 . . 252 . . . . 869 614 512 306 . 3498 . . . 467 . 1666 . . . . . . . 114 . . Electromagnetic 1415 | . . . . . . . . . . 51 . . . . . 561 . . . . . . . . . . . . 803 . . . Impact . | . . . . . . . . . . . . . . . . . . . . . . . . . . . . . . . . . Slashing . | . . . . . . . . . . . . . . . . . . . . . . . . . . . . . . . . . Piercing 452 | . . . . . . 233 84 67 . 68 . . . . . . . . . . . . . . . . . . . . . . Highest Corruption 38 | . . . . . . 1 3 3 3 22 38 1 1 1 1 . 5 5 5 5 5 2 . . 4 4 4 4 8 2 22 5 Average Corruption 4 | . . . . . . 1 1 3 3 6 22 1 1 1 1 . 4 3 5 5 2 2 . . 2 4 4 3 2 1 12 4 Corruption Purged 4 | . . . . . . . . . . . . . . . . . . . . . . . . . . . . 4 . . . . Effects 355 | . . . . . . 9 4 17 18 9 24 9 . 3 . . 4 40 21 18 4 14 . . 4 31 15 5 11 5 83 7 Message Errors 106 | . . . . . . 6 2 3 5 4 2 4 . 3 . . . 6 3 5 1 6 . . 1 12 5 1 5 . 27 5 Matter Fused 76 | . . . . . . . . 5 5 4 8 . . . . . 2 10 6 3 1 . . . 3 7 6 1 . . 14 1 Heat Flow Errors 49 | . . . . . . . . 1 2 . 4 . . . . . 2 8 1 4 1 5 . . . 5 . 1 3 1 11 . Energy Discharges 47 | . . . . . . . 1 7 3 1 2 4 . . . . . 6 3 1 . 1 . . . 2 3 2 . 2 9 . Data Loss (minor) 43 | . . . . . . 3 1 1 3 . 2 . . . . . . 9 3 2 . 2 . . . 4 1 . 2 2 7 1 Data Loss (major) 11 | . . . . . . . . . . . . . . . . . . 1 2 2 . . . . . . . . . . 6 . Misfires 12 | . . . . . . . . . . . 4 . . . . . . . 2 . . . . . . . . . . . 6 . Alerts 2 | . . . . . . . . . . . 2 . . . . . . . . . . . . . . . . . . . . . Weapon Failures 9 | . . . . . . . . . . . . 1 . . . . . . 1 1 1 . . . . 1 . . 1 . 3 . Overload Shots 9 | . . . . . . . . . . . . . . . . . . . . . . . . . . . . . 9 . . . Effects 1 | . . . . . . . . . . . . . . . . . . . . . . . . . . . . . 1 . . . Energy Bleed 1 | . . . . . . . . . . . . . . . . . . . . . . . . . . . . . 1 . . . Overflow Damage 2921 | . 6 5 29 . . 39 54 23 . 8 39 130 . 14 53 188 67 403 5 65 117 119 9 . 299 104 17 84 324 89 517 114 Projectiles 2428 | . 6 . . . . . . . . . . 7 . . 53 149 67 403 5 27 117 41 9 . 299 104 17 84 320 89 517 114 Explosions 349 | . . . 21 . . 8 . . . . 39 122 . . . 39 . . . 38 . 78 . . . . . . 4 . . . Melee 144 | . . 5 8 . . 31 54 23 . 8 . 1 . 14 . . . . . . . . . . . . . . . . . . Knockbacks 16 | . 8 1 . 1 . 1 1 . . . . . . . . . . 2 . . . . . . . 2 . . . . . . Impact 8 | . . 1 . 1 . 1 1 . . . . . . . . . . 2 . . . . . . . 2 . . . . . . Kinetic 8 | . 8 . . . . . . . . . . . . . . . . . . . . . . . . . . . . . . . Secondary . | . . . . . . . . . . . . . . . . . . . . . . . . . . . . . . . . . Self-Inflicted Damage 462 | . . . . . . . . . . . 38 181 . . . 51 . . . . . 10 . . . . . . 182 . . . Shots 7 | . . . . . . . . . . . 1 2 . . . 1 . . . . . 1 . . . . . . 2 . . . Rammed . | . . . . . . . . . . . . . . . . . . . . . . . . . . . . . . . . . Targets Rammed 87 | . 2 9 17 5 5 9 3 . . . . 5 . 3 . 2 . 8 . . . . . . 4 6 . . 2 7 . . Kicked 87 | . 2 9 17 5 5 9 3 . . . . 5 . 3 . 2 . 8 . . . . . . 4 6 . . 2 7 . . Crushed . | . . . . . . . . . . . . . . . . . . . . . . . . . . . . . . . . . Highest Temperature 342 | . 66 . 214 95 327 72 303 94 184 . 224 103 . . 33 342 197 250 225 265 159 245 . . 11 205 . 234 299 136 249 . Average Temperature 57 | . 14 . 53 38 72 20 36 56 45 . 94 18 . . 22 61 45 54 114 54 57 70 . . 4 107 . 114 128 37 94 . Received Heat Transfer 3588 | . 213 . 198 6 576 540 162 . . . 18 276 . 45 63 144 163 135 12 84 165 69 9 . 111 57 . . 232 124 174 12 Effects 7 | . . . . . 5 . . . . . . . . . . 1 . 1 . . . . . . . . . . . . . . Shutdowns 1 | . . . . . . . . . . . . . . . . 1 . . . . . . . . . . . . . . . . Energy Bleed 1 | . . . . . . . . . . . . . . . . . . 1 . . . . . . . . . . . . . . Interference 3 | . . . . . 3 . . . . . . . . . . . . . . . . . . . . . . . . . . . Short Circuit 2 | . . . . . 2 . . . . . . . . . . . . . . . . . . . . . . . . . . . Siege Activations . | . . . . . . . . . . . . . . . . . . . . . . . . . . . . . . . . . Robots Corrupted 3 | . . . . . . . . . . 1 . . . . . 2 . . . . . . . . . . . . . . . . Combat Hostiles 3 | . . . . . . . . . . 1 . . . . . 2 . . . . . . . . . . . . . . . . Parts Fried 4 | . . . . . . . . . . 1 . . . . . 1 . . . . . . . . . 1 . . 1 . . . Impact Corruptions 6 | . . 1 1 . . 1 1 . . . . 1 . 1 . . . . . . . . . . . . . . . . . . Robots Melted 19 | . . . . . 1 3 1 . . . . 3 . . . 6 1 3 . . . . . . 1 . . . . . . . Combat Hostiles 16 | . . . . . 1 3 1 . . . . 2 . . . 5 1 2 . . . . . . 1 . . . . . . . Parts Melted 160 | . . . 2 . 32 27 19 1 . . . 28 . . 4 9 5 7 . 3 1 . 2 . 2 1 . . 3 5 8 1 Heat Transferred 71283 | . 111 . 3315 333 8843 9102 4644 285 1095 . 223 8279 . . 2672 8969 900 4800 375 1000 1633 275 500 50 2050 1375 931 673 2975 1725 3425 725 Parts Sabotaged 1 | . . . . . . . . . . . . . . . . . . . . . . . . . . . . . 1 . . . Parts Stolen . | . . . . . . . . . . . . . . . . . . . . . . . . . . . . . . . . . Parts Stripped . | . . . . . . . . . . . . . . . . . . . . . . . . . . . . . . . . . Power Chain Reactions 2 | . . . . . . . . . . . . . . . . 1 . . . . . . . . . . . . 1 . . . Missiles Intercepted . | . . . . . . . . . . . . . . . . . . . . . . . . . . . . . . . . . Alert | -11 -10 -10 -9 -9 -8 -8 -7 -7 -7 -7 -6 -6 -6 -6 -6 -6 -5 -5 -5 -5 -5 -4 -4 -4 -4 -4 -4 -4 -4 -3 -3 -3 ------- Run | Scr Mat Min Mat Min Mat Sto Fac Low Low Dat Pro Fac Low Low Zio Dee Pro Fac Upp Upp War Pro Fac Was Fac Ext Cet Arc Hub Res Qua Sec Peak Influence 1282 | 5 302 57 430 311 360 683 237 . . . . 1259 . . . . . 404 . . . . 83 50 291 580 879 529 1282 672 416 368 Initial 672 | . 3 57 . 161 18 144 185 . . . . . . . . . . 25 . . . . . 29 35 136 221 351 114 672 44 159 Average 244 | 1 173 21 279 171 204 384 97 . . . . 576 . . . . . 144 . . . . 63 43 89 277 620 436 404 159 225 206 Maximum Alert Level 4 | . 1 . 2 1 1 2 1 . . . . 4 . . . . . 2 . . . . . . 1 2 3 2 4 2 2 1 Low Security (%) 50 | 100 56 100 24 67 46 17 88 . . . . 30 . . . . . 83 . . . . 100 100 86 39 1 . 9 76 37 56 Level 1 32 | . 43 . 57 32 53 32 11 . . . . . . . . . . 12 . . . . . . 13 43 31 38 32 21 60 43 Level 2 12 | . . . 18 . . 50 . . . . . 30 . . . . . 3 . . . . . . . 17 9 61 56 1 1 . Level 3 3 | . . . . . . . . . . . . 28 . . . . . . . . . . . . . . 58 . 1 . . . Level 4 . | . . . . . . . . . . . . 9 . . . . . . . . . . . . . . . . . . . . Level 5 . | . . . . . . . . . . . . . . . . . . . . . . . . . . . . . . . . . High Security . | . . . . . . . . . . . . . . . . . . . . . . . . . . . . . . . . . Max Security . | . . . . . . . . . . . . . . . . . . . . . . . . . . . . . . . . . Squads Dispatched 78 | . 7 . 4 . 4 4 8 . . . . 9 . . . . . 9 . . . . 2 . 4 1 . . 9 4 9 4 Investigation 19 | . 4 . 2 . 2 . 4 . . . . . . . . . . 1 . . . . 1 . 1 . . . . 2 1 1 Extermination 26 | . . . . . . . 4 . . . . 3 . . . . . 6 . . . . . . 2 . . . 2 . 7 2 Reinforcement 27 | . 3 . 2 . 1 4 . . . . . 4 . . . . . 2 . . . . 1 . 1 1 . . 4 2 1 1 Assault 4 | . . . . . . . . . . . . 2 . . . . . . . . . . . . . . . . 2 . . . Garrison 2 | . . . . . 1 . . . . . . . . . . . . . . . . . . . . . . . 1 . . . Intercept . | . . . . . . . . . . . . . . . . . . . . . . . . . . . . . . . . . Construction Impeded 9 | . . . . . . . . . . . . 1 . . . . . 1 . . . . . . 1 1 . . 3 1 . 1 Haulers Reinforced 3 | . . . . . . . . . . . . 1 . . . . . 1 . . . . . . . . . . . 1 . . Cargo Convoy Interrupts 1 | . . . . . . . . . . . . 1 . . . . . . . . . . . . . . . . . . . . Stealth | -11 -10 -10 -9 -9 -8 -8 -7 -7 -7 -7 -6 -6 -6 -6 -6 -6 -5 -5 -5 -5 -5 -4 -4 -4 -4 -4 -4 -4 -4 -3 -3 -3 --------- Run | Scr Mat Min Mat Min Mat Sto Fac Low Low Dat Pro Fac Low Low Zio Dee Pro Fac Upp Upp War Pro Fac Was Fac Ext Cet Arc Hub Res Qua Sec Distress Signals 34 | . 4 . 7 . 2 3 1 . . . . 1 . . . . . . . . 3 . . . . 2 2 . 5 4 . . Communications Jammed . | . . . . . . . . . . . . . . . . . . . . . . . . . . . . . . . . . Distress Signals . | . . . . . . . . . . . . . . . . . . . . . . . . . . . . . . . . . Times Spotted 683 | . 36 . 51 11 47 40 25 . 4 1 8 34 4 9 20 51 6 37 2 8 73 8 2 6 20 27 24 24 29 23 42 11 Peak Tracking Total 35 | . 7 . 6 3 6 6 3 . 1 1 4 5 4 6 2 35 3 3 1 5 14 5 2 6 3 4 5 2 21 5 4 4 Tactical Retreats 26 | . 2 . 3 1 2 3 1 . 1 . . 4 . . . 2 . . . . 1 1 . . . . . . 1 1 3 . Traps | -11 -10 -10 -9 -9 -8 -8 -7 -7 -7 -7 -6 -6 -6 -6 -6 -6 -5 -5 -5 -5 -5 -4 -4 -4 -4 -4 -4 -4 -4 -3 -3 -3 ------- Run | Scr Mat Min Mat Min Mat Sto Fac Low Low Dat Pro Fac Low Low Zio Dee Pro Fac Upp Upp War Pro Fac Was Fac Ext Cet Arc Hub Res Qua Sec Traps Triggered 19 | . 4 . . . 2 2 1 . . . . 1 . . . . . 2 . . . . 1 . . 3 . . . 1 2 . Indirectly . | . . . . . . . . . . . . . . . . . . . . . . . . . . . . . . . . . Trap Hack Attempts . | . . . . . . . . . . . . . . . . . . . . . . . . . . . . . . . . . Triggered . | . . . . . . . . . . . . . . . . . . . . . . . . . . . . . . . . . Disarmed . | . . . . . . . . . . . . . . . . . . . . . . . . . . . . . . . . . Reprogrammed . | . . . . . . . . . . . . . . . . . . . . . . . . . . . . . . . . . Reused 2 | . . . . . . . . . . 2 . . . . . . . . . . . . . . . . . . . . . . Traps Extracted . | . . . . . . . . . . . . . . . . . . . . . . . . . . . . . . . . . Installed 6 | . . . . . . . . 2 . 4 . . . . . . . . . . . . . . . . . . . . . . Triggered 26 | . . . . . . . . . 4 . . 2 . . . . . . 1 . 19 . . . . . . . . . . . Machines | -11 -10 -10 -9 -9 -8 -8 -7 -7 -7 -7 -6 -6 -6 -6 -6 -6 -5 -5 -5 -5 -5 -4 -4 -4 -4 -4 -4 -4 -4 -3 -3 -3 ---------- Run | Scr Mat Min Mat Min Mat Sto Fac Low Low Dat Pro Fac Low Low Zio Dee Pro Fac Upp Upp War Pro Fac Was Fac Ext Cet Arc Hub Res Qua Sec Machines Disabled 78 | . 2 . 1 . 3 2 . . . 1 . 6 . . 1 2 . 5 . . 2 . . . . 2 2 . 31 3 9 6 Max in Single Turn 19 | . 1 . 1 . 1 1 . . . 1 . 4 . . 1 1 . 1 . . 1 . . . . . . . 19 2 1 2 Garrison Access 7 | . . . . . 1 1 1 . . . . 2 . . . . . . . . . . . . . . . . 1 . 1 . Network Hub 2 | . . . . . . . . . . . . . . . . . . . . . . . . . . . . . 2 . . . Machines Sabotaged . | . . . . . . . . . . . . . . . . . . . . . . . . . . . . . . . . . Garrisons Compromised 1 | . . . . . . . . . . . . 1 . . . . . . . . . . . . . . . . . . . . Overloaded Fab Kills . | . . . . . . . . . . . . . . . . . . . . . . . . . . . . . . . . . Fab Network Shutdowns 1 | . . . . . . . . . . . . 1 . . . . . . . . . . . . . . . . . . . . Hacking | -11 -10 -10 -9 -9 -8 -8 -7 -7 -7 -7 -6 -6 -6 -6 -6 -6 -5 -5 -5 -5 -5 -4 -4 -4 -4 -4 -4 -4 -4 -3 -3 -3 --------- Run | Scr Mat Min Mat Min Mat Sto Fac Low Low Dat Pro Fac Low Low Zio Dee Pro Fac Upp Upp War Pro Fac Was Fac Ext Cet Arc Hub Res Qua Sec Machines Accessed 115 | . 6 1 14 . 12 10 10 . 1 4 1 13 . 1 1 . . 11 . . . . 1 . 4 4 2 . 2 5 11 1 Terminals 75 | . 5 . 10 . 7 7 6 . . . 1 6 . . . . . 8 . . . . 1 . 3 4 2 . 2 4 8 1 Fabricators 10 | . . . . . . . 1 . . . . 5 . . . . . 3 . . . . . . 1 . . . . . . . Repair Stations 6 | . . . 1 . 2 2 1 . . . . . . . . . . . . . . . . . . . . . . . . . Recycling Units 4 | . 1 . 2 . 1 . . . . . . . . . . . . . . . . . . . . . . . . . . . Scanalyzers 6 | . . . 1 . 1 . 1 . . . . . . . . . . . . . . . . . . . . . . 1 2 . Garrison Access 6 | . . . . . 1 1 1 . . . . 2 . . . . . . . . . . . . . . . . . . 1 . Total Hacks 383 | . 20 1 48 . 46 29 19 . 1 27 1 34 . 1 4 . . 23 . . . . 6 . 10 17 5 . 11 32 42 6 Successful 231 | . 12 1 31 . 27 20 10 . 1 27 1 24 . 1 4 . . 7 . . . . 3 . 4 8 5 . 7 16 21 1 Failed 151 | . 8 . 17 . 19 9 9 . . . . 10 . . . . . 16 . . . . 3 . 6 9 . . 4 16 20 5 Catastrophic 32 | . . . 1 . 2 3 3 . . . . . . . . . . 4 . . . . . . 2 3 . . . 8 4 2 Database Lockouts 1 | . . . . . . . . . . . . . . . . . . . . . . . . . . . . . . . 1 . Manual 196 | . 16 . 30 . 19 16 3 . . . . 11 . . 4 . . 11 . . 1 . 5 . 2 9 1 . 10 22 32 4 Terminals 270 | . 19 . 37 . 29 20 11 . . . 1 17 . . . . . 15 . . . . 6 . 9 17 5 . 11 29 38 6 Fabricators 26 | . . . . . . . 2 . . . . 15 . . . . . 8 . . . . . . 1 . . . . . . . Repair Stations 27 | . . . 6 . 11 8 2 . . . . . . . . . . . . . . . . . . . . . . . . . Recycling Units 6 | . 1 . 2 . 3 . . . . . . . . . . . . . . . . . . . . . . . . . . . Scanalyzers 13 | . . . 3 . 2 . 2 . . . . . . . . . . . . . . . . . . . . . . 3 3 . Garrison Access 7 | . . . . . 1 1 2 . . . . 2 . . . . . . . . . . . . . . . . . . 1 . Terminal Hacks 123 | . 6 1 14 . 8 8 3 . 1 27 1 6 . 1 4 . . 2 . . . . 2 . 2 6 5 . 6 10 9 1 Record 17 | . . . . . . . . . . 11 1 . . 1 . . . . . . . . . . . . 4 . . . . . Part Schematic 14 | . . . . . . . . . . 8 . . . . 4 . . . . . . . . . . . . . . . 2 . Robot Schematic 5 | . . . . . . . . . . 5 . . . . . . . . . . . . . . . . . . . . . . Prototype ID Bank 3 | . . . . . . . . . . 3 . . . . . . . . . . . . . . . . . . . . . . Open Door 8 | . . 1 . . . 2 . . 1 . . . . . . . . . . . . . . . 1 2 1 . . . . . Branch Access Points 7 | . . . . . 1 . 1 . . . . 1 . . . . . 1 . . . . 1 . 1 . . . . 1 . . Terminal Index 9 | . . . 2 . 1 1 1 . . . . . . . . . . . . . . . . . . . . . 1 1 1 1 Fabricator Index 4 | . . . . . . . 1 . . . . 1 . . . . . . . . . . 1 . . . . . . 1 . . Scanalyzer Index 1 | . . . . . . . . . . . . . . . . . . . . . . . . . . . . . . 1 . . Alert Level 20 | . 1 . 5 . 3 2 . . . . . 1 . . . . . . . . . . . . . 2 . . 2 2 2 . Unreport Threat 15 | . . . 1 . 2 2 . . . . . 1 . . . . . 1 . . . . . . . 1 . . 2 4 1 . Locate Traps 1 | . . . . . . . . . . . . . . . . . . . . . . . . . . . . . . . 1 . Recall Extermination 1 | . . . . . . . . . . . . . . . . . . . . . . . . . . . . . . . 1 . Hauler Manifests 7 | . 1 . 1 . 1 1 . . . . . 2 . . . . . . . . . . . . . 1 . . . . . . Zone Layout 11 | . 4 . 5 . . . . . . . . . . . . . . . . . . . . . . . . . 1 . 1 . Fabricator Hacks 16 | . . . . . . . 2 . . . . 11 . . . . . 3 . . . . . . . . . . . . . . Load Schematic 9 | . . . . . . . 1 . . . . 6 . . . . . 2 . . . . . . . . . . . . . . Build 7 | . . . . . . . 1 . . . . 5 . . . . . 1 . . . . . . . . . . . . . . Repair Station Hacks 26 | . . . 6 . 10 8 2 . . . . . . . . . . . . . . . . . . . . . . . . . Scan Component 13 | . . . 3 . 5 4 1 . . . . . . . . . . . . . . . . . . . . . . . . . Repair 13 | . . . 3 . 5 4 1 . . . . . . . . . . . . . . . . . . . . . . . . . Recycling Unit Hacks 1 | . . . . . 1 . . . . . . . . . . . . . . . . . . . . . . . . . . . Retrieve Components 1 | . . . . . 1 . . . . . . . . . . . . . . . . . . . . . . . . . . . Scanalyzer 11 | . . . 2 . 2 . 2 . . . . . . . . . . . . . . . . . . . . . . 2 3 . Insert Component 7 | . . . 1 . 1 . 1 . . . . . . . . . . . . . . . . . . . . . . 1 3 . Analyze 4 | . . . 1 . 1 . 1 . . . . . . . . . . . . . . . . . . . . . . 1 . . Garrison Access Hacks 6 | . . . . . 1 1 1 . . . . 2 . . . . . . . . . . . . . . . . . . 1 . Seal Access 6 | . . . . . 1 1 1 . . . . 2 . . . . . . . . . . . . . . . . . . 1 . Unauthorized Hacks 48 | . 6 . 9 . 5 3 . . . . . 5 . . . . . 2 . . . . 1 . 2 2 . . 1 4 8 . Terminals 44 | . 5 . 7 . 5 3 . . . . . 5 . . . . . 2 . . . . 1 . 1 2 . . 1 4 8 . Assimilate 3 | . . . . . . . . . . . . 1 . . . . . . . . . . . . . . . . . . 2 . Botnet 40 | . 5 . 6 . 5 3 . . . . . 4 . . . . . 2 . . . . 1 . 1 2 . . 1 4 6 . Disrupt 1 | . . . 1 . . . . . . . . . . . . . . . . . . . . . . . . . . . . . Fabricators 1 | . . . . . . . . . . . . . . . . . . . . . . . . . 1 . . . . . . . Haulers 1 | . . . . . . . . . . . . . . . . . . . . . . . . . 1 . . . . . . . Repair Stations . | . . . . . . . . . . . . . . . . . . . . . . . . . . . . . . . . . Recycling Units 3 | . 1 . 2 . . . . . . . . . . . . . . . . . . . . . . . . . . . . . Tunnel 3 | . 1 . 2 . . . . . . . . . . . . . . . . . . . . . . . . . . . . . Scanalyzers . | . . . . . . . . . . . . . . . . . . . . . . . . . . . . . . . . . Garrison Access . | . . . . . . . . . . . . . . . . . . . . . . . . . . . . . . . . . Data Cores Recovered 3 | . . . . . . . . . . . . 1 . . . . . 1 . . . . . . . 1 . . . . . . Used . | . . . . . . . . . . . . . . . . . . . . . . . . . . . . . . . . . Hacking Detections 87 | . 5 . 11 . 11 7 8 . . . 1 11 . . . . . 11 . . . . 1 . 2 3 1 . 2 3 9 1 Full Trace Events 9 | . . . . . 1 . 3 . . . . . . . . . . 1 . . . . 1 . 1 . . . . . 1 1 Feedback Events 1 | . . . . . . . 1 . . . . . . . . . . . . . . . . . . . . . . . . . Hackware Fried 1 | . . . . . . . 1 . . . . . . . . . . . . . . . . . . . . . . . . . Feedback Blocked . | . . . . . . . . . . . . . . . . . . . . . . . . . . . . . . . . . Robot Schematics Acquired 5 | . . . . . . . . . . 5 . . . . . . . . . . . . . . . . . . . . . . Robots Built 2 | . . . . . . . . . . . . 2 . . . . . . . . . . . . . . . . . . . . Matter 318 | . . . . . . . . . . . . 318 . . . . . . . . . . . . . . . . . . . . Time 169 | . . . . . . . . . . . . 169 . . . . . . . . . . . . . . . . . . . . Total Robot Build Rating 12 | . . . . . . . . . . . . 12 . . . . . . . . . . . . . . . . . . . . Part Schematics Acquired 18 | . . . 1 . 1 . 1 . . 8 . . . . 4 . . . . . . . . . . . . . . 1 2 . Parts Built 6 | . . . . . . . 1 . . . . 4 . . . . . 1 . . . . . . . . . . . . . . Matter 1348 | . . . . . . . 168 . . . . 895 . . . . . 285 . . . . . . . . . . . . . . Time 350 | . . . . . . . 42 . . . . 232 . . . . . 76 . . . . . . . . . . . . . . Total Part Build Rating 26 | . . . . . . . 4 . . . . 17 . . . . . 5 . . . . . . . . . . . . . . Parts Repaired 13 | . . . 3 . 5 4 1 . . . . . . . . . . . . . . . . . . . . . . . . . Time 619 | . . . 142 . 229 187 61 . . . . . . . . . . . . . . . . . . . . . . . . . Parts Recycled . | . . . . . . . . . . . . . . . . . . . . . . . . . . . . . . . . . Recycled Matter . | . . . . . . . . . . . . . . . . . . . . . . . . . . . . . . . . . Retrieved Matter . | . . . . . . . . . . . . . . . . . . . . . . . . . . . . . . . . . Retrieved Components 9 | . . . . . 9 . . . . . . . . . . . . . . . . . . . . . . . . . . . Parts Scanalyzed 4 | . . . 1 . 1 . 1 . . . . . . . . . . . . . . . . . . . . . . 1 . . Part Schematics Acquired 4 | . . . 1 . 1 . 1 . . . . . . . . . . . . . . . . . . . . . . 1 . . Parts Damaged 2 | . . . . . . . 1 . . . . . . . . . . . . . . . . . . . . . . 1 . . Bothacking | -11 -10 -10 -9 -9 -8 -8 -7 -7 -7 -7 -6 -6 -6 -6 -6 -6 -5 -5 -5 -5 -5 -4 -4 -4 -4 -4 -4 -4 -4 -3 -3 -3 ------------ Run | Scr Mat Min Mat Min Mat Sto Fac Low Low Dat Pro Fac Low Low Zio Dee Pro Fac Upp Upp War Pro Fac Was Fac Ext Cet Arc Hub Res Qua Sec Used RIF Installer . | . . . . . . . . . . . . . . . . . . . . . . . . . . . . . . . . . Robots Hacked . | . . . . . . . . . . . . . . . . . . . . . . . . . . . . . . . . . Non-combat . | . . . . . . . . . . . . . . . . . . . . . . . . . . . . . . . . . Combat . | . . . . . . . . . . . . . . . . . . . . . . . . . . . . . . . . . Robot Hacks Applied . | . . . . . . . . . . . . . . . . . . . . . . . . . . . . . . . . . Relay Couplers Released 8 | . . . . . . . 4 . . . . . . . . . . . . . . . . . . . . . . 3 1 . Machine Destruction 1 | . . . . . . . . . . . . . . . . . . . . . . . . . . . . . . . 1 . Programmers 7 | . . . . . . . 4 . . . . . . . . . . . . . . . . . . . . . . 3 . . Robots Rewired 21 | . . . . . . . . . . . . . . . . . . . . . . . . . . 21 . . . . . . Allies Hacked . | . . . . . . . . . . . . . . . . . . . . . . . . . . . . . . . . . Hacks Repelled . | . . . . . . . . . . . . . . . . . . . . . . . . . . . . . . . . . Allies | -11 -10 -10 -9 -9 -8 -8 -7 -7 -7 -7 -6 -6 -6 -6 -6 -6 -5 -5 -5 -5 -5 -4 -4 -4 -4 -4 -4 -4 -4 -3 -3 -3 -------- Run | Scr Mat Min Mat Min Mat Sto Fac Low Low Dat Pro Fac Low Low Zio Dee Pro Fac Upp Upp War Pro Fac Was Fac Ext Cet Arc Hub Res Qua Sec Total Allies 55 | . . 1 . 3 . . . . . . . 21 . . . . . . . . . . . . . 24 5 . . . 1 . Largest Group 17 | . . 1 . 3 1 . . . . . . 17 . . . . . . . . . . . . . 14 14 8 6 . 1 . Highest-Rated Group 872 | . . 31 . 40 16 . . . . . . 683 . . . . . . . . . . . . . 692 872 591 496 . 45 . Highest-Rated Ally 156 | . . 31 . 16 16 . . . . . . 74 . . . . . . . . . . . . . 156 141 95 95 . 45 . Total Orders 4 | . . . . . . . . . . . . . . . . . . . . . . . . . . . 2 2 . . . . STAY 2 | . . . . . . . . . . . . . . . . . . . . . . . . . . . 1 1 . . . . FOLLOW 2 | . . . . . . . . . . . . . . . . . . . . . . . . . . . 1 1 . . . . Ally Attacks 351 | . . . . 27 11 . . . . . . 19 . . . . . . . . . . . . . 125 102 15 52 . . . Total Damage 10540 | . . . . 303 109 . . . . . . 386 . . . . . . . . . . . . . 4011 3423 532 1776 . . . Kills 66 | . . . . 7 3 . . . . . . 5 . . . . . . . . . . . . . 21 20 4 6 . . . Allies Corrupted . | . . . . . . . . . . . . . . . . . . . . . . . . . . . . . . . . . Allies Melted 2 | . . . . . . . . . . . . . . . . . . . . . . . . . . . . . 2 . . . Intel | -11 -10 -10 -9 -9 -8 -8 -7 -7 -7 -7 -6 -6 -6 -6 -6 -6 -5 -5 -5 -5 -5 -4 -4 -4 -4 -4 -4 -4 -4 -3 -3 -3 ------- Run | Scr Mat Min Mat Min Mat Sto Fac Low Low Dat Pro Fac Low Low Zio Dee Pro Fac Upp Upp War Pro Fac Was Fac Ext Cet Arc Hub Res Qua Sec Robot Analysis Total . | . . . . . . . . . . . . . . . . . . . . . . . . . . . . . . . . . Derelict Logs Recovered 12 | . . 1 . 1 . . . 1 1 . 1 . 1 2 1 . 1 . . 1 . 1 . . . . . . . . . . Drone Launches 2 | . . . . . . . 2 . . . . . . . . . . . . . . . . . . . . . . . . . Drone Recoveries 2 | . . . . . . . 2 . . . . . . . . . . . . . . . . . . . . . . . . . Exploration | -11 -10 -10 -9 -9 -8 -8 -7 -7 -7 -7 -6 -6 -6 -6 -6 -6 -5 -5 -5 -5 -5 -4 -4 -4 -4 -4 -4 -4 -4 -3 -3 -3 ------------- Run | Scr Mat Min Mat Min Mat Sto Fac Low Low Dat Pro Fac Low Low Zio Dee Pro Fac Upp Upp War Pro Fac Was Fac Ext Cet Arc Hub Res Qua Sec Turns Passed 44146 | 64 1634 1052 3161 1217 3387 2307 2999 1043 1083 367 531 2168 282 580 2156 2797 629 2543 649 739 1170 1045 183 150 1330 1815 673 592 1082 1286 2813 619 Spaces Moved 17658 | 40 699 511 1192 574 1323 811 1279 492 475 156 372 1029 239 431 902 935 255 972 245 273 466 328 67 78 498 633 220 140 286 424 1085 228 Core 17 | 17 . . . . . . . . . . . . . . . . . . . . . . . . . . . . . . . . Treads . | . . . . . . . . . . . . . . . . . . . . . . . . . . . . . . . . . Legs 17619 | 23 699 511 1192 574 1323 811 1279 492 475 156 372 1029 239 431 902 935 255 972 245 273 466 328 67 78 498 633 220 140 286 424 1085 206 Wheels . | . . . . . . . . . . . . . . . . . . . . . . . . . . . . . . . . . Hover . | . . . . . . . . . . . . . . . . . . . . . . . . . . . . . . . . . Flight . | . . . . . . . . . . . . . . . . . . . . . . . . . . . . . . . . . Fastest Speed 50 | 50 120 200 200 200 200 200 203 203 203 203 123 113 113 113 193 106 186 186 193 193 186 186 186 133 186 193 193 193 193 195 195 195 Average Speed 186 | 117 187 200 210 200 200 202 203 203 203 203 123 133 113 127 193 143 186 190 193 193 190 191 186 145 187 194 193 193 206 195 197 195 Slowest Speed 360 | 200 360 200 280 200 280 203 203 203 203 203 203 280 113 193 193 193 186 255 193 193 245 245 186 186 193 255 193 193 280 196 262 195 Overloaded Moves . | . . . . . . . . . . . . . . . . . . . . . . . . . . . . . . . . . Propulsion Burnouts . | . . . . . . . . . . . . . . . . . . . . . . . . . . . . . . . . . Robots Hopped 4 | . . . . . . . . . . . . . . . 2 . . . . . . . . . . . . . . 2 . . Cave-ins Triggered 1 | . . . . . . . . . . . . . . . . . . . . . . . . . . . . . . . 1 . Teleports 2 | . . . . . . . . . . . . . . . . . . . . . . . . . . . . . . . . 2 Microwarps 1 | . . . . . . . . . . . . . . . . . . . . . . . . . . . . . . . . 1 Exploration Rate (%) 59 | 4 94 98 98 97 98 95 35 54 57 78 66 29 39 86 83 86 53 27 42 50 43 52 3 89 13 84 76 72 36 20 91 13 Regions Visited 32 Branch Regions 22 Pre-discovered Areas 8 | . 1 . 2 . . . . 1 . 1 1 . . 1 1 . . . . . . . . . . . . . . . . . Known Exits Taken 24 | . . . . . 1 . 1 1 1 1 1 1 1 1 1 1 1 1 1 1 1 1 . . 1 1 1 1 1 1 1 . Unknown Exits Taken 6 | 1 1 1 1 1 . 1 . . . . . . . . . . . . . . . . . . . . . . . . . . Scrap Searched 10 | . . 1 . 2 . . . 1 . . . . 2 2 . . . . 1 1 . . . . . . . . . . . . Spaces Dug 233 | . . . 12 . . 10 1 . 1 2 19 7 . 21 . 3 27 7 3 . 10 12 1 2 9 . . . 8 . 27 51 Terrain Destroyed 1284 | . . . 29 . . 22 1 . 1 2 106 67 9 27 10 49 45 77 18 27 26 92 8 3 44 16 1 4 380 52 91 77 Melee 9 | . . . . . . 1 1 . 1 2 4 . . . . . . . . . . . . . . . . . . . . . Projectile 572 | . . . . . . . . . . . . 9 . . 10 11 45 77 18 9 26 24 8 3 44 16 1 4 69 30 91 77 AOE 703 | . . . 29 . . 21 . . . . 102 58 9 27 . 38 . . . 18 . 68 . . . . . . 311 22 . . Terrain Rammed . | . . . . . . . . . . . . . . . . . . . . . . . . . . . . . . . . . Walls Destroyed . | . . . . . . . . . . . . . . . . . . . . . . . . . . . . . . . . . Machines Disabled . | . . . . . . . . . . . . . . . . . . . . . . . . . . . . . . . . . Actions | -11 -10 -10 -9 -9 -8 -8 -7 -7 -7 -7 -6 -6 -6 -6 -6 -6 -5 -5 -5 -5 -5 -4 -4 -4 -4 -4 -4 -4 -4 -3 -3 -3 --------- Run | Scr Mat Min Mat Min Mat Sto Fac Low Low Dat Pro Fac Low Low Zio Dee Pro Fac Upp Upp War Pro Fac Was Fac Ext Cet Arc Hub Res Qua Sec Total 26118 | 50 901 536 1672 621 1828 1258 1564 531 569 192 417 1619 247 458 1234 2090 356 1478 399 451 659 711 104 111 785 1156 395 421 619 794 1559 333 Wait 6034 | 1 72 11 307 33 328 304 161 22 73 4 18 404 4 6 293 929 78 371 142 157 120 335 19 26 207 379 127 252 212 297 289 53 Move 17597 | 39 698 510 1191 573 1322 810 1278 491 474 155 371 1028 238 430 897 934 254 971 244 272 465 327 67 77 497 632 219 139 285 419 1083 207 Hop 4 | . . . . . . . . . . . . . . . 2 . . . . . . . . . . . . . . 2 . . Pick Up 196 | 2 20 3 18 1 19 9 16 5 1 4 . 21 . 2 2 9 . 10 . . 5 2 1 . 3 3 4 1 12 6 15 2 Fast Attach 86 | 6 8 . 11 . 12 5 4 . . 2 . 10 . 1 . 4 . 2 . . 4 2 . . 1 . . 1 1 3 8 1 Attach 76 | . 2 . 2 . 6 4 4 . 1 . 1 7 1 4 1 7 . 2 . . 2 1 3 . 1 1 1 2 6 4 7 6 Detach 34 | . 2 . 1 . 1 . . . . 1 . 1 1 3 . 5 . . . . 1 5 . . 1 . 1 2 2 2 1 4 Swap 279 | . 13 . 18 . 9 12 32 3 11 8 10 32 . 6 2 19 . 8 2 4 3 8 2 2 18 5 4 2 12 5 23 6 Drop 294 | . 19 3 34 1 22 8 18 5 1 6 . 22 . 1 1 21 . 19 1 2 12 11 1 3 5 8 3 5 9 11 36 6 Fire 1305 | 2 65 . 73 8 104 92 46 2 7 3 10 89 3 2 36 160 24 87 10 16 47 20 11 3 48 25 36 17 78 38 95 48 Melee 22 | . . . . . . 5 2 1 1 5 7 . . . . . . . . . . . . . . . . . . . 1 . Ram . | . . . . . . . . . . . . . . . . . . . . . . . . . . . . . . . . . Kick 87 | . 2 9 17 5 5 9 3 . . . . 5 . 3 . 2 . 8 . . . . . . 4 6 . . 2 7 . . Crush . | . . . . . . . . . . . . . . . . . . . . . . . . . . . . . . . . . Escape Stasis 16 | . . . . . . . . . . . . . . . . . . . . . . . . . . 15 . . . . 1 . Rewire 82 | . . . . . . . . . . . . . . . . . . . . . . . . . . 82 . . . . . . Trap 6 | . . . . . . . . 2 . 4 . . . . . . . . . . . . . . . . . . . . . . Miscellaneous . | . . . . . . . . . . . . . . . . . . . . . . . . . . . . . . . . . Route ------- -11/Scrapyard -10/Materials (discovered 4 exits: *Mat x3 / *Min) -10/Mines (discovered 3 exits: *Mat x2 / [*Exi]) -9/Materials (discovered 4 exits: *Mat x3 / [*Min]) -9/Mines (discovered 2 exits: *Mat x2) -8/Materials (discovered 4 exits: *Fac x3 / *Sto) -8/Storage -7/Factory (discovered 4 exits: *Fac x2 / *Low x2) -7/Lower Caves -7/Lower Caves -7/Data Miner -6/Proximity Caves -6/Factory (discovered 4 exits: *Fac x2 / *Low x2) -6/Lower Caves -6/Lower Caves (discovered 2 exits: *Fac / *Zio) -6/Zion (discovered 2 exits: *Dee / [*Pro]) -6/Deep Caves -5/Proximity Caves -5/Factory (discovered 3 exits: *Fac / *Upp x2) -5/Upper Caves -5/Upper Caves -5/Warlord -4/Proximity Caves -4/Factory (discovered 4 exits: Upp x2 / Ext x2) -4/Waste -4/Factory (discovered 4 exits: Upp x2 / *Ext x2) -4/Extension (discovered 2 exits: *Res / *Cet) -4/Cetus (discovered 2 exits: *Res / *Arc) -4/Archives (discovered 2 exits: *Res / *Hub) -4/Hub_04(d) (discovered 2 exits: *Res x2) -3/Research (discovered 3 exits: Arm / *Qua x2) -3/Quarantine -3/Section 7 History --------- Turn | Location | Event 4 | -11/Scrapyard | Discovered new exit (range 16) 65 | -11/Scrapyard | Entered Materials 195 | -10/Materials | Discovered new exit (range 16) 311 | -10/Materials | Build established: Mutant 376 | -10/Materials | Discovered new exit (range 4) 857 | -10/Materials | Discovered new exit (range 4) 1074 | -10/Materials | Discovered new exit (range 6) 1699 | -10/Materials | Entered Mines 1702 | -10/Mines | Received a Mining Laser from a helpful Derelict 1741 | -10/Mines | Learned Materials trap positions 1764 | -10/Mines | Met a Derelict who couldn't figure out how to use a Trap Extractor 1997 | -10/Mines | Build established: Scavenger-Mutant 2049 | -10/Mines | Assembled infested the area 2122 | -10/Mines | Met 8R-AWN 2167 | -10/Mines | Discovered new exit (range 7) 2389 | -10/Mines | Discovered new exit (range 13) 2419 | -10/Mines | Discovered new exit (range 5) 2751 | -10/Mines | Entered Materials 2751 | -9/Materials | Evolved 2 slots: Utility x1, Weapon x1 2752 | -9/Materials | Loaded intel: 22 trap records 2977 | -9/Materials | Discovered new exit (range 13) 3046 | -9/Materials | Build established: Scavenger-Tank 3871 | -9/Materials | Build established: Tank 3884 | -9/Materials | Discovered new exit (range 13) 3991 | -9/Materials | Repaired Corrupted Imp. Heat Sink 4030 | -9/Materials | Repaired Hrd. Medium Armor Plating 4082 | -9/Materials | Repaired Hvy. Ion Engine 4430 | -9/Materials | Discovered new exit (range 15) 5222 | -9/Materials | Discovered new exit (range 16) 5912 | -9/Materials | Entered Mines 6034 | -9/Mines | Learned location of 1 exit from Lower Caves 6218 | -9/Mines | Assisted by bots powering up and referring to "LRC-V3" 6344 | -9/Mines | Discovered new exit (range 7) 6669 | -9/Mines | A weapon hastily lodged in a ceiling crevice suddenly fell to the ground 7101 | -9/Mines | Discovered new exit (range 9) 7129 | -9/Mines | Entered Materials 7129 | -8/Materials | Accompanied by 1 ally 7129 | -8/Materials | Evolved 2 slots: Propulsion x1, Utility x1 7507 | -8/Materials | Repaired Hrd. Medium Armor Plating 7540 | -8/Materials | Repaired Imp. Aluminum Leg 7593 | -8/Materials | Repaired Hvy. Ion Engine 8095 | -8/Materials | Identified exit to Storage 8141 | -8/Materials | Discovered new exit (range 16) 8931 | -8/Materials | Garrison activated, responded to threat 9224 | -8/Materials | Build established: Scavenger-Tank 9467 | -8/Materials | Discovered new exit (range 15) 9649 | -8/Materials | Discovered new exit (range 15) 10225 | -8/Materials | Repaired Broken Adv. Heat Sink 10330 | -8/Materials | Repaired Carbon-fiber Leg 10516 | -8/Materials | Entered Storage 10867 | -8/Storage | Build established: Scavenger-Gunner 11239 | -8/Storage | Build established: Gunner 11413 | -8/Storage | Discovered new exit (range 7) 11924 | -8/Storage | Core integrity fell below 50% 11972 | -8/Storage | Repaired Carbon-fiber Leg 12273 | -8/Storage | Build established: Scavenger-Gunner 12458 | -8/Storage | Repaired Titanium Leg 12519 | -8/Storage | Repaired Prc. Beam Rifle 12572 | -8/Storage | Repaired Cld. Ion Engine 12823 | -8/Storage | Entered Factory 12823 | -7/Factory | Evolved 2 slots: Utility x2 12874 | -7/Factory | Hacking Suite fried by hacking feedback 13116 | -7/Factory | Build established: Scavenger-Skirmisher 13421 | -7/Factory | Discovered new exit (range 15) 13496 | -7/Factory | Identified exit to Factory 13940 | -7/Factory | Identified exit to Lower Caves 14475 | -7/Factory | Discovered exit to Factory (range 13) 14919 | -7/Factory | Repaired Broken Hvy. Rocket Launcher 15707 | -7/Factory | Fabricated Hvy. Rocket Launcher (x1) 15822 | -7/Factory | Entered Lower Caves 15823 | -7/Lower Caves | Identified exit to Lower Caves 16082 | -7/Lower Caves | Encountered a Warlord checkpoint 16575 | -7/Lower Caves | Build established: Scavenger-Mutant 16865 | -7/Lower Caves | Entered another Lower Caves area 16887 | -7/Lower Caves | Learned Factory terminal intel 17345 | -7/Lower Caves | Spotted B-75 Beast 17385 | -7/Lower Caves | Build established: Scavenger-Skirmisher 17750 | -7/Lower Caves | Destroyed B-75 Beast 17864 | -7/Lower Caves | Discovered new exit (range 15) 17889 | -7/Lower Caves | Identified exit to Data Miner 17948 | -7/Lower Caves | Entered Data Miner 17948 | -7/Data Miner | Discovered new exit (range 6) 17987 | -7/Data Miner | Met Data Miner 18028 | -7/Data Miner | Learned location of Section 7 (-3) 18028 | -7/Data Miner | Acquired the access code to Warlord's prototype stash 18056 | -7/Data Miner | Received God Mode back door access code from Data Miner 18118 | -7/Data Miner | Identified exit to Proximity Caves 18189 | -7/Data Miner | Data Conduit disabled 18250 | -7/Data Miner | System corruption reached 10% 18315 | -7/Data Miner | Entered Proximity Caves 18392 | -6/Proximity Caves | Attracted the attention of an 0b10 checkpoint 18453 | -6/Proximity Caves | Learned location of Zion (-6) 18832 | -6/Proximity Caves | Discovered exit to Factory (range 6) 18843 | -6/Proximity Caves | System corruption reached 30% 18846 | -6/Proximity Caves | Entered Factory 18846 | -6/Factory | Evolved 2 slots: Power x1, Utility x1 18847 | -6/Factory | Loaded intel: 20 terminal locations 19013 | -6/Factory | Identified exit to Lower Caves 19074 | -6/Factory | Fabricated Mni. Smartbomb Launcher (x1) 19221 | -6/Factory | Fabricated Hacking Suite? 19287 | -6/Factory | Fabricated Hacking Suite (x1) 19514 | -6/Factory | Cargo convoy interrupted 19569 | -6/Factory | Discovered new exit (range 11) 19588 | -6/Factory | Identified exit to Factory 19926 | -6/Factory | Fabricated Lgt. Regenerative Plating (x1) 20246 | -6/Factory | First assault squad dispatched 20751 | -6/Factory | Local fabrication network quarantined 20799 | -6/Factory | Fabricated P-70 Sage? 20862 | -6/Factory | Discovered exit to Factory (range 7) 21008 | -6/Factory | Lost 3 parts (1p1n1w) 21014 | -6/Factory | Entered Lower Caves 21018 | -6/Lower Caves | Learned Factory terminal intel 21226 | -6/Lower Caves | Discovered new exit (range 5) 21230 | -6/Lower Caves | Identified exit to Lower Caves 21253 | -6/Lower Caves | Spotted B-75 Beast 21260 | -6/Lower Caves | Build established: Scavenger-Mutant 21296 | -6/Lower Caves | Entered another Lower Caves area 21428 | -6/Lower Caves | Discovered exit to Factory (range 15) 21564 | -6/Lower Caves | Attracted the attention of an 0b10 checkpoint 21713 | -6/Lower Caves | Identified exit to Zion 21876 | -6/Lower Caves | Entered Zion 21948 | -6/Zion | System corruption cleaned by Quarantine Array 21990 | -6/Zion | Discovered new exit (range 16) 22122 | -6/Zion | Acquired unknown access codes intercepted by a Zionite 22293 | -6/Zion | Given the Hacking Drone Bay 22697 | -6/Zion | Learned Factory terminal intel 23402 | -6/Zion | Opened final containment barrier to the Deep Caves 23433 | -6/Zion | Discovered new exit (range 3) 23433 | -6/Zion | Saw the warning signs outside the Deep Caves entrance 23435 | -6/Zion | Identified exit to Deep Caves 23478 | -6/Zion | Attacked by Zionites 23678 | -6/Zion | Destroyed Imprinter 23717 | -6/Zion | Extracted access codes from Imprinter's data core 23748 | -6/Zion | Build established: Skirmisher 24032 | -6/Zion | Entered Deep Caves 24747 | -6/Deep Caves | Build established: Mutant 24800 | -6/Deep Caves | Z-Facility disabled 24894 | -6/Deep Caves | Found Prototype Protection 24931 | -6/Deep Caves | Identified Zio. Weapon Casing 25125 | -6/Deep Caves | Build established: Scavenger-Skirmisher 25215 | -6/Deep Caves | Discovered new exit (range 7) 25453 | -6/Deep Caves | Exposed GOLEM chamber 25459 | -6/Deep Caves | Destroyed as-34803 25545 | -6/Deep Caves | Triggered Deep Caves wall 25577 | -6/Deep Caves | Spotted AS-92748 25578 | -6/Deep Caves | Spotted AS-82168 25602 | -6/Deep Caves | Destroyed AS-82168 25605 | -6/Deep Caves | Destroyed AS-92748 25614 | -6/Deep Caves | Destroyed 37 combat bots 25697 | -6/Deep Caves | Destroyed 7 combat bots 25712 | -6/Deep Caves | Found GOLEM Unit 25790 | -6/Deep Caves | Found GOLEM Unit 26260 | -6/Deep Caves | Build established: Golem 26614 | -6/Deep Caves | Found GOLEM Unit 26643 | -6/Deep Caves | Found GOLEM Unit 26821 | -6/Deep Caves | Identified exit to Proximity Caves 26829 | -6/Deep Caves | Entered Proximity Caves 27410 | -5/Proximity Caves | Spotted B-75 Beast 27458 | -5/Proximity Caves | Entered Factory 27458 | -5/Factory | Evolved 2 slots: Utility x2 27459 | -5/Factory | Loaded intel: 20 terminal locations 28480 | -5/Factory | Identified exit to Upper Caves 29108 | -5/Factory | Fabricated Lgt. Regenerative Plating (x1) 29316 | -5/Factory | Discovered new exit (range 9) 29345 | -5/Factory | Identified exit to Factory 30001 | -5/Factory | Entered Upper Caves 30002 | -5/Upper Caves | Encountered a Warlord checkpoint 30537 | -5/Upper Caves | Spotted B-75 Beast 30579 | -5/Upper Caves | Destroyed B-75 Beast 30625 | -5/Upper Caves | Discovered new exit (range 12) 30645 | -5/Upper Caves | Identified exit to Upper Caves 30650 | -5/Upper Caves | Entered another Upper Caves area 30811 | -5/Upper Caves | Attracted the attention of an 0b10 checkpoint 31109 | -5/Upper Caves | Discovered new exit (range 6) 31234 | -5/Upper Caves | Identified exit to Warlord 31389 | -5/Upper Caves | Entered Warlord 31438 | -5/Warlord | System corruption cleaned by Quarantine Array 31592 | -5/Warlord | Met Warlord 31610 | -5/Warlord | Opened Warlord's prototype stash 31617 | -5/Warlord | Warlord's base attacked by MAIN.C 31620 | -5/Warlord | Found Prototype Reactor 31626 | -5/Warlord | Found Prototype Device 31626 | -5/Warlord | Identified Exp. Cloaking Device 31638 | -5/Warlord | Found Prototype Device 31638 | -5/Warlord | Identified Exp. Focal Shield 31653 | -5/Warlord | Found Prototype Hackware 31964 | -5/Warlord | Spotted Executioner 31967 | -5/Warlord | Warlord forces counterattacked 32001 | -5/Warlord | Destroyed Executioner 32197 | -5/Warlord | Spotted Executioner 32292 | -5/Warlord | Warlord base infiltrated, sounded retreat 32320 | -5/Warlord | Spotted Striker 32337 | -5/Warlord | Spotted Striker 32344 | -5/Warlord | Destroyed Striker 32397 | -5/Warlord | Spotted Striker 32403 | -5/Warlord | Spotted Executioner 32468 | -5/Warlord | Spotted Striker 32513 | -5/Warlord | Discovered new exit (range 15) 32535 | -5/Warlord | Identified exit to Proximity Caves 32559 | -5/Warlord | Entered Proximity Caves 33011 | -4/Proximity Caves | Found Unknown Protection 33011 | -4/Proximity Caves | Identified Imp. Powered Armor 33050 | -4/Proximity Caves | Learned Research security intel 33285 | -4/Proximity Caves | Attracted the attention of an 0b10 checkpoint 33309 | -4/Proximity Caves | Discovered exit to Factory (range 14) 33604 | -4/Proximity Caves | Entered Factory 33604 | -4/Factory | Evolved 2 slots: Utility x2 33604 | -4/Factory | Identified Ghost Barrier 33605 | -4/Factory | Identified exit to Upper Caves 33606 | -4/Factory | Loaded intel: 21 terminal locations 33621 | -4/Factory | Identified exit to Extension 33787 | -4/Factory | Sucked down chute 33787 | -4/Factory | Entered Waste 33834 | -4/Waste | Spotted C-40 Crusher 33841 | -4/Waste | Spotted C-40 Crusher 33841 | -4/Waste | Spotted C-40 Crusher 33847 | -4/Waste | Spotted C-40 Crusher 33861 | -4/Waste | Spotted C-40 Crusher 33880 | -4/Waste | Spotted C-40 Crusher 33919 | -4/Waste | Discovered new exit (range 10) 33929 | -4/Waste | Identified exit to Factory 33937 | -4/Waste | Entered Factory 34240 | -4/Factory | Build established: Hacker-Golem 35267 | -4/Factory | Entered Extension 35609 | -4/Extension | Rescued A7 35966 | -4/Extension | Rescued a captive Derelict 35967 | -4/Extension | Rescued a captive Derelict 36440 | -4/Extension | Build established: Commander-Golem 36544 | -4/Extension | Spotted B-86 Titan 36558 | -4/Extension | Allies destroyed B-86 Titan 36562 | -4/Extension | Spotted B-86 Titan 36571 | -4/Extension | Destroyed B-86 Titan 37045 | -4/Extension | Discovered new exit (range 10) 37047 | -4/Extension | Discovered new exit (range 6) 37059 | -4/Extension | Identified exit to Cetus 37082 | -4/Extension | Entered Cetus 37082 | -4/Cetus | Accompanied by 14 allies (A7) 37087 | -4/Cetus | Acquired a Cetus Manufacturing Module code from A7 37107 | -4/Cetus | Spotted Cetus Guard 37107 | -4/Cetus | Spotted Cetus Guard 37109 | -4/Cetus | Spotted Cetus Guard 37116 | -4/Cetus | Spotted Cetus Guard 37124 | -4/Cetus | Allies destroyed Cetus Guard 37124 | -4/Cetus | Destroyed Cetus Guard 37129 | -4/Cetus | Allies destroyed Cetus Guard 37131 | -4/Cetus | Allies destroyed Cetus Guard 37203 | -4/Cetus | Started Cetus Manufacturing Module 37219 | -4/Cetus | Escorted A7 to Cetus Mainframe 37228 | -4/Cetus | Manufactured an Enhanced Grunt 37253 | -4/Cetus | Manufactured an Enhanced Grunt 37278 | -4/Cetus | Manufactured an Enhanced Grunt 37303 | -4/Cetus | Manufactured an Enhanced Grunt 37328 | -4/Cetus | Manufactured an Enhanced Grunt 37408 | -4/Cetus | Discovered new exit (range 15) 37440 | -4/Cetus | Spotted Cetus Guard 37440 | -4/Cetus | Spotted Cetus Guard 37443 | -4/Cetus | Spotted Cetus Guard 37446 | -4/Cetus | Spotted Cetus Guard 37459 | -4/Cetus | Allies destroyed Cetus Guard 37461 | -4/Cetus | Allies destroyed Cetus Guard 37462 | -4/Cetus | Allies destroyed Cetus Guard 37463 | -4/Cetus | Allies destroyed Cetus Guard 37477 | -4/Cetus | Discovered new exit (range 16) 37550 | -4/Cetus | Identified exit to Archives 37683 | -4/Cetus | Destroyed A7 37687 | -4/Cetus | Extracted ID and sensor layout for unrecognized location from A7's data core 37693 | -4/Cetus | Found Prototype Protection 37694 | -4/Cetus | Identified Med. Regenerative Plating 37755 | -4/Cetus | Entered Archives 37755 | -4/Archives | Accompanied by 8 allies 37823 | -4/Archives | Discovered new exit (range 16) 37850 | -4/Archives | Identified exit to Hub_04(d) 37935 | -4/Archives | Discovered new exit (range 15) 38347 | -4/Archives | Entered Hub_04(d) 38347 | -4/Hub_04(d) | Accompanied by 6 allies 38455 | -4/Hub_04(d) | Build established: Hacker-Golem 38597 | -4/Hub_04(d) | First assault squad dispatched 38809 | -4/Hub_04(d) | Discovered new exit (range 2) 38811 | -4/Hub_04(d) | Identified exit to Research 38939 | -4/Hub_04(d) | Identified Vortex Chain Reactor 39035 | -4/Hub_04(d) | Lost 9 parts (1p3n2u3w) 39146 | -4/Hub_04(d) | Discovered exit to Research (range 11) 39413 | -4/Hub_04(d) | Network Hub disabled 39413 | -4/Hub_04(d) | Garrison activated, responded to threat 39414 | -4/Hub_04(d) | Core integrity fell below 50% 39424 | -4/Hub_04(d) | Spotted Lightning 39426 | -4/Hub_04(d) | Network Hub disabled 39426 | -4/Hub_04(d) | Spotted Lightning 39426 | -4/Hub_04(d) | Spotted Lightning 39429 | -4/Hub_04(d) | Entered Research 39429 | -3/Research | Evolved 2 slots: Propulsion x1, Utility x1 39448 | -3/Research | Identified exit to Armory 39448 | -3/Research | Identified exit to Quarantine 39629 | -3/Research | Revision forces began assault on 0b10 39652 | -3/Research | Met up with Revision 17++ 39761 | -3/Research | Found Prototype Device 39765 | -3/Research | Identified Exp. Thermal Shield 40129 | -3/Research | Research terminal network offline 40251 | -3/Research | Spotted B-86 Titan 40288 | -3/Research | Destroyed B-86 Titan 40715 | -3/Research | Entered Quarantine 40761 | -3/Quarantine | Found Alien Artifact 40982 | -3/Quarantine | P-80 Master assimilated allied Director 8a 41061 | -3/Quarantine | Cryocooling Duct disabled 41076 | -3/Quarantine | Ambient heat levels rising (+20) 41076 | -3/Quarantine | Non-combat units ordered to evacuate 41154 | -3/Quarantine | Found Alien Impact Weapon 42046 | -3/Quarantine | System corruption reached 10% 42101 | -3/Quarantine | Crushed by falling debris 42114 | -3/Quarantine | Central database locked down 42127 | -3/Quarantine | Discovered new exit (range 11) 42151 | -3/Quarantine | Identified exit to Research 42288 | -3/Quarantine | Found Alien Artifact 42293 | -3/Quarantine | Found Alien Artifact 42319 | -3/Quarantine | Identified Transdimensional Reconstructor (x2) 42319 | -3/Quarantine | Identified Subatomic Replicator 42359 | -3/Quarantine | Found Alien Artifact 42364 | -3/Quarantine | Found Alien Artifact 42417 | -3/Quarantine | Identified Dimensional Node Initializer (x2) 42478 | -3/Quarantine | Found Transdimensional Reconstructor 42987 | -3/Quarantine | Found Alien Artifact 42987 | -3/Quarantine | Identified Core Reset Matrix 42987 | -3/Quarantine | Identified Core Stripper 42987 | -3/Quarantine | Used Core Reset Matrix 42991 | -3/Quarantine | Detected hypermatrix surge 42991 | -3/Quarantine | Sensed 9 artifacts in vicinity 43316 | -3/Quarantine | Spotted Fortress 43324 | -3/Quarantine | Destroyed Fortress 43332 | -3/Quarantine | Found Prototype Reactor 43336 | -3/Quarantine | Found Prototype Reactor 43344 | -3/Quarantine | Found Prototype Device 43349 | -3/Quarantine | Found Prototype Device 43349 | -3/Quarantine | Identified EM Dispersion Field 43357 | -3/Quarantine | Found Prototype Device 43357 | -3/Quarantine | Identified Thermal Barrier 43374 | -3/Quarantine | Identified Exp. Force Field 43519 | -3/Quarantine | Discovered new exit (range 5) 43524 | -3/Quarantine | Identified exit to Section 7 43528 | -3/Quarantine | Entered Section 7 43529 | -3/Section 7 | Sensed 22 artifacts in vicinity 43670 | -3/Section 7 | Spotted B-86 Titan 43743 | -3/Section 7 | Found Microwarp Drive 43858 | -3/Section 7 | Found Integrated Reactor 43858 | -3/Section 7 | Installed Integrated Reactor, increased core energy generation (+10) 44014 | -3/Section 7 | Warped through subspace 44143 | -3/Section 7 | Warped through subspace 44144 | -3/Section 7 | Core integrity fell below 50% 44147 | -3/Section 7 | Self-destructed Last Messages --------------- 44091_ Destroyed Unknown Hover Unit. 44091_ Destroyed Unknown Storage. 44094_ Aeration Cycler disabled. 44094_ Unknown Storage melted. 44094_ P-80 Master destroyed. 44110_ S,AF8FIPQ 44112_ U-05 Engineer builds a Wall. 44116_ R-10 Processor collects Unknown Device. 44119_ U-05 Engineer builds a Wall. 44123_ Acquired Adv. Energy Well. 44125_ R-10 Processor collects Unknown Device. 44127_ U-05 Engineer builds a Wall. 44130_ R-10 Processor collects Unknown Engine. 44131_ System corrupted: Matter fused (-8). 44143_ Slug penetrates Wall. 44143_ Slug penetrates Dark Matter Chamber. 44143_ Warped through subspace. 44144_ GOLEM Unit beginning Asb. Nanovents integration. 44145_ Asb. Nanovents integration complete. 44145_ Discarded Asb. Nanovents. Map ----- +----------------------------------------------------+ | " " " #???????????????????????????????????????? | | =!"" " #???????????????????????????????????????? | | " #???????????????????????????????????????? | | " """" #???????????????????????????????????????? | | #???????????????????????????????????????? | | #???????????????????????????????????????? | | #???????????????????????????????????????? | | #???????????????????????????????????????? | | #???????????????????????????????????????? | | #???????????????????????????????????????? | | #???????????????????????????????????????? | | ##########???????????????????????????????????????? | | ###??????????????????????????????????????????????? | | ##?????????????###??????????????????????????????? | | #??????????????# ??????????????????????????????? | | #??????????????# #??????????????????????????????? | | #??????????????# #??????????????????????????????? | | #??????????????# #??????????????????????????????? | | #?????????######/####???????????????????????????? | | ####??????# #????????????????????????""?? | | " ######## ###????###???????????????"" ? | | !" # # #???#"""""#????????????? | | ### #??# ###???#""R""###???????????? | | ###?##?##??# # #??## " " # ##???????????? | | ???????????# ###### k ?????????????? | | ???????????# # @# """ """ #????????????? | | ###????????# ""c + # """[""" #????????????? | | #????????# "" # k#!"g %""" #????????????? | | ###????????# """"" # = +!g=g=[ #????????????? | | ???????????# """ #!%[ #|"!" + #?????? | | ???????????# """"" =#%!!!# "T"g ### +?????? | | ???????????# ""c #=== # """ ! #????????????? | | ???????????# "" #|=* ###########????????????? | | ???????????# # #??????????????????????? | | ???????????# # #??????????????????????? | | ???????????########### #??????????????????????? | | ?????????????????????# #??????????????????????? | | ?????????????????????# #??????????????????????? | | ?????????????????????# ####???????????????????? | | ?????????????????????# #???????????????????? | | ?????????????????????# #???????????????????? | | ?????????????????????# #???????????????????? | | ?????????????????????# #???????????????????? | | ?????????????????????#########???????????????????? | | ?????????????????????????????????????????????????? | | ?????????????????????????????????????????????????? | | ?????????????????????????????????????????????????? | | ?????????????????????????????????????????????????? | | | | | +----------------------------------------------------+ Best States ------------- Heat Dissipation 91 Energy Generation 70 Energy Capacity 1700 Matter Stores 300 Matter Capacity 300 Sight Range 16 Robot Scan Range 18 Terrain Scan Density 10 Power Amplification 60 Armor Coverage 325 Resistance: KI 15 Resistance: TH 15 Resistance: EX 15 Resistance: EM 15 Resistance: I 15 Resistance: S 15 Resistance: P 15 Weapon Shielding 100 Evasion (%) 55 Targeting Accuracy 8 Particle Charging 20 Offensive Hacking 38 Defensive Hacking 20 Item Schematics ----------------- None Robot Schematics ------------------ None Fabricated ------------ Hvy. Rocket Launcher | x1 | -7/Factory Mni. Smartbomb Launcher | x1 | -6/Factory Hacking Suite | x1 | -6/Factory Hacking Suite | x1 | -6/Factory Lgt. Regenerative Plating | x1 | -6/Factory P-70 Sage | x2 | -6/Factory Lgt. Regenerative Plating | x1 | -5/Factory Alien Tech Used ----------------- Core Reset Matrix Core Stripper Microwarp Drive Integrated Reactor Transdimensional Reconstructor Achievements -------------- None Challenges ------------ None Game ------ Seed FluxCloakingRigger Manual? 0 Play Time 03:45:53 Cumulative 1296.5 hours Start 2021.06.25 @ 15:33:27 End 2021.06.27 @ 11:59:46 Sessions 3 Manual Loads 0 Difficulty Rogue Special Mode None Game No. 438 Rogue 438 Adventurer 0 Explorer 0 Win Type - Total 94 Types 20/12/37/5/1/2/15/1/1 Lore% 97 Gallery% 96 Achievement% 85 Wizard Run 0 Options --------- ASCII 0 Keyboard 0 Movement Numpad Keybinds 0 Fullscreen 1 Font 18/SmallcapsGlow Map View 76x50 Tactical HUD 1 Map Filters NONE Filters NONE Steam 1 RUN: feed108c-9eb4-4b48-81c3-0e2bb22880a2